[Event "*** Titled Tuesday Blitz"]
[Site "Chess.com"]
[Date "2019.04.02"]
[Round "8"]
[White "SanchezKelvin"]
[Black "almaguerjm"]
[Result "1/2-1/2"]
[WhiteElo "2527"]
[BlackElo "2310"]
[TimeControl "180+2"]
[EndTime "15:50:14 PDT"]
[Termination "Game drawn by agreement"]

1. d4 {[%clk 0:03:01.9]} 1... Nf6 {[%clk 0:02:54.5]} 2. c4 {[%clk 0:03:02.1]}
2... c5 {[%clk 0:02:33.9]} 3. d5 {[%clk 0:03:02.3]} 3... d6 {[%clk 0:02:34.6]}
4. Nc3 {[%clk 0:03:02.5]} 4... g6 {[%clk 0:02:36.1]} 5. e4 {[%clk 0:03:03.2]}
5... Bg7 {[%clk 0:02:36.4]} 6. h3 {[%clk 0:03:04.3]} 6... O-O {[%clk 0:02:36.6]}
7. Nf3 {[%clk 0:03:05.2]} 7... e6 {[%clk 0:02:37.8]} 8. Bd3 {[%clk 0:03:05.9]}
8... exd5 {[%clk 0:02:39.1]} 9. cxd5 {[%clk 0:03:07.1]} 9... Re8 {[%clk
0:02:37]} 10. O-O {[%clk 0:03:07.4]} 10... c4 {[%clk 0:02:38.4]} 11. Bc2 {[%clk
0:03:07.7]} 11... b5 {[%clk 0:02:39.8]} 12. a3 {[%clk 0:03:05.9]} 12... Nbd7
{[%clk 0:02:34.8]} 13. Bf4 {[%clk 0:03:06.3]} 13... Nc5 {[%clk 0:02:33.6]} 14.
Re1 {[%clk 0:02:57.6]} 14... a6 {[%clk 0:02:23.5]} 15. Bxd6 {[%clk 0:02:42]}
15... Qxd6 {[%clk 0:02:22.7]} 16. e5 {[%clk 0:02:42.8]} 16... Qb6 {[%clk
0:02:10.3]} 17. exf6 {[%clk 0:02:43.2]} 17... Rxe1+ {[%clk 0:02:08.3]} 18. Qxe1
{[%clk 0:02:42.5]} 18... Bxf6 {[%clk 0:02:09.4]} 19. Qe8+ {[%clk 0:02:42.4]}
19... Kg7 {[%clk 0:02:10.7]} 20. Qc6 {[%clk 0:02:36]} 20... Qxc6 {[%clk
0:01:36.6]} 21. dxc6 {[%clk 0:02:37.9]} 21... Bxc3 {[%clk 0:01:35.7]} 22. bxc3
{[%clk 0:02:37.9]} 22... Be6 {[%clk 0:01:36.7]} 23. Nd4 {[%clk 0:02:37.7]} 23...
Rc8 {[%clk 0:01:36.6]} 24. a4 {[%clk 0:02:36.4]} 24... Nb3 {[%clk 0:01:28.6]}
25. Bxb3 {[%clk 0:02:33.1]} 25... cxb3 {[%clk 0:01:29.1]} 26. axb5 {[%clk
0:02:34.1]} 26... axb5 {[%clk 0:01:30.3]} 27. Rb1 {[%clk 0:02:33.5]} 27... Kf6
{[%clk 0:01:26.8]} 28. f4 {[%clk 0:02:33]} 28... h5 {[%clk 0:01:25.4]} 29. Kf2
{[%clk 0:02:31.8]} 29... Bd5 {[%clk 0:01:25.7]} 30. g4 {[%clk 0:02:28.7]} 30...
hxg4 {[%clk 0:01:24.9]} 31. hxg4 {[%clk 0:02:29.4]} 31... Rh8 {[%clk 0:01:11.5]}
32. Nxb3 {[%clk 0:02:21.3]} 32... Bxc6 {[%clk 0:00:25.4]} 33. Nd4 {[%clk
0:02:19.4]} 33... Bd7 {[%clk 0:00:26.7]} 34. Nxb5 {[%clk 0:02:19.9]} 34... Rh2+
{[%clk 0:00:24.8]} 35. Kg3 {[%clk 0:02:20]} 35... Rc2 {[%clk 0:00:25.9]} 36. g5+
{[%clk 0:02:20.4]} 36... Kg7 {[%clk 0:00:26.8]} 37. Nd6 {[%clk 0:01:50.9]} 37...
Rxc3+ {[%clk 0:00:26.1]} 38. Kf2 {[%clk 0:01:51.9]} 38... Bc6 {[%clk 0:00:21.6]}
39. Rb6 {[%clk 0:01:44.5]} 39... Kf8 {[%clk 0:00:19.9]} 40. Rb4 {[%clk
0:01:34.5]} 40... Ke7 {[%clk 0:00:20]} 41. Ne4 {[%clk 0:01:33.9]} 41... Bxe4
{[%clk 0:00:19.9]} 42. Rxe4+ {[%clk 0:01:34.4]} 42... Kf8 {[%clk 0:00:21.3]} 43.
Re5 {[%clk 0:01:33]} 43... Kg7 {[%clk 0:00:22.2]} 44. Ke2 {[%clk 0:01:27.2]}
44... Kg8 {[%clk 0:00:23.3]} 45. f5 {[%clk 0:01:27.4]} 45... gxf5 {[%clk
0:00:23.7]} 46. Rxf5 {[%clk 0:01:28.3]} 46... Kg7 {[%clk 0:00:25.2]} 47. Kf2
{[%clk 0:01:29.4]} 47... Kg6 {[%clk 0:00:24.6]} 48. Rf6+ {[%clk 0:01:30.4]}
48... Kxg5 {[%clk 0:00:25.8]} 49. Rxf7 {[%clk 0:01:31.3]} 49... Rc5 {[%clk
0:00:26.6]} 50. Ra7 {[%clk 0:01:30.9]} 50... Rf5+ {[%clk 0:00:27.6]} 51. Kg3
{[%clk 0:01:32]} 51... Rb5 {[%clk 0:00:28.2]} 52. Rg7+ {[%clk 0:01:33]} 52...
Kf6 {[%clk 0:00:28.8]} 53. Rg4 {[%clk 0:01:33.7]} 53... Kf5 {[%clk 0:00:29.9]}
54. Rc4 {[%clk 0:01:32.2]} 54... Rb3+ {[%clk 0:00:29]} 55. Kh4 {[%clk
0:01:33.1]} 55... Rb1 {[%clk 0:00:30.1]} 56. Rc5+ {[%clk 0:01:33.5]} 56... Kf4
{[%clk 0:00:31.5]} 57. Rc4+ {[%clk 0:01:33.8]} 57... Kf5 {[%clk 0:00:33]} 58.
Kg3 {[%clk 0:01:34.6]} 58... Rb3+ {[%clk 0:00:34.2]} 59. Kf2 {[%clk 0:01:35.5]}
59... Ke5 {[%clk 0:00:34.1]} 60. Rh4 {[%clk 0:01:35.4]} 60... Kf5 {[%clk
0:00:35.1]} 61. Ke2 {[%clk 0:01:36.4]} 61... Kg5 {[%clk 0:00:36]} 62. Ra4 {[%clk
0:01:37.2]} 62... Kf5 {[%clk 0:00:37.4]} 63. Kd2 {[%clk 0:01:38.2]} 63... Ke5
{[%clk 0:00:38.8]} 64. Kc2 {[%clk 0:01:39.2]} 64... Rh3 {[%clk 0:00:39.9]} 65.
Rg4 {[%clk 0:01:39.4]} 65... Kd5 {[%clk 0:00:41]} 66. Kd2 {[%clk 0:01:39.9]}
1/2-1/2

[Event "*** Titled Tuesday Blitz"]
[Site "Chess.com"]
[Date "2019.04.02"]
[Round "8"]
[White "hansen"]
[Black "AttilaTurzo"]
[Result "1-0"]
[WhiteElo "2800"]
[BlackElo "2578"]
[TimeControl "180+2"]
[EndTime "15:50:17 PDT"]
[Termination "hansen won by resignation"]

1. e4 {[%clk 0:03:01.9]} 1... e5 {[%clk 0:02:58.8]} 2. Nf3 {[%clk 0:03:01.1]}
2... Nc6 {[%clk 0:02:59.6]} 3. Bb5 {[%clk 0:03:01.3]} 3... a6 {[%clk 0:03:00.5]}
4. Ba4 {[%clk 0:03:01.5]} 4... Nf6 {[%clk 0:03:00.2]} 5. O-O {[%clk 0:02:59]}
5... Be7 {[%clk 0:03:00.7]} 6. Re1 {[%clk 0:03:00.1]} 6... b5 {[%clk 0:03:00.1]}
7. Bb3 {[%clk 0:03:01.5]} 7... d6 {[%clk 0:03:00.5]} 8. c3 {[%clk 0:02:48.9]}
8... O-O {[%clk 0:02:58.9]} 9. h3 {[%clk 0:02:48]} 9... Nb8 {[%clk 0:02:59.2]}
10. d4 {[%clk 0:02:47.6]} 10... Nbd7 {[%clk 0:02:59.8]} 11. Nbd2 {[%clk
0:02:48.3]} 11... Bb7 {[%clk 0:03:00.2]} 12. Bc2 {[%clk 0:02:47.3]} 12... Re8
{[%clk 0:02:58.4]} 13. Nf1 {[%clk 0:02:35.5]} 13... c5 {[%clk 0:02:57.4]} 14.
Ng3 {[%clk 0:02:35.5]} 14... Bf8 {[%clk 0:02:57.8]} 15. a4 {[%clk 0:02:12.3]}
15... g6 {[%clk 0:02:51.7]} 16. Bg5 {[%clk 0:02:09.6]} 16... Qc7 {[%clk
0:02:51.5]} 17. d5 {[%clk 0:02:08.2]} 17... c4 {[%clk 0:02:51.6]} 18. Qd2 {[%clk
0:02:03.7]} 18... Bg7 {[%clk 0:02:51.4]} 19. Ra3 {[%clk 0:02:03.2]} 19... Nc5
{[%clk 0:02:45.9]} 20. Rea1 {[%clk 0:02:03.7]} 20... Rab8 {[%clk 0:02:39.5]} 21.
Nh4 {[%clk 0:01:47.7]} 21... Bc8 {[%clk 0:02:35.7]} 22. axb5 {[%clk 0:01:47.3]}
22... axb5 {[%clk 0:02:37.6]} 23. Ra7 {[%clk 0:01:42.5]} 23... Rb7 {[%clk
0:02:37.5]} 24. R7a5 {[%clk 0:01:43.6]} 24... Bd7 {[%clk 0:02:22.8]} 25. R5a3
{[%clk 0:01:44.5]} 25... Na4 {[%clk 0:02:01.8]} 26. R3a2 {[%clk 0:01:34.2]}
26... Ra8 {[%clk 0:01:44.3]} 27. Bh6 {[%clk 0:01:28.2]} 27... Bh8 {[%clk
0:01:31.1]} 28. Be3 {[%clk 0:01:11.1]} 28... Re8 {[%clk 0:01:26]} 29. Kh2 {[%clk
0:01:10.7]} 29... Bg7 {[%clk 0:01:24.3]} 30. f4 {[%clk 0:01:10.8]} 30... exf4
{[%clk 0:01:21]} 31. Bxf4 {[%clk 0:01:12]} 31... Nc5 {[%clk 0:01:21.6]} 32. Ra8
{[%clk 0:01:13]} 32... Na4 {[%clk 0:01:08.1]} 33. Rxe8+ {[%clk 0:00:51]} 33...
Bxe8 {[%clk 0:01:09.1]} 34. Nhf5 {[%clk 0:00:37.2]} 34... Bf8 {[%clk 0:00:41.5]}
35. Nh6+ {[%clk 0:00:29.8]} 35... Kg7 {[%clk 0:00:35.9]} 36. Rf1 {[%clk
0:00:29.1]} 36... Nd7 {[%clk 0:00:31.9]} 37. Ng4 {[%clk 0:00:27.9]} 37... Nac5
{[%clk 0:00:24.2]} 38. Qd4+ {[%clk 0:00:22.6]} 38... Kg8 {[%clk 0:00:19.8]} 39.
e5 {[%clk 0:00:15.6]} 39... dxe5 {[%clk 0:00:15.9]} 40. Nxe5 {[%clk 0:00:15.8]}
40... Nxe5 {[%clk 0:00:15]} 41. Bxe5 {[%clk 0:00:15.6]} 41... Bd6 {[%clk
0:00:14.8]} 42. Bxd6 {[%clk 0:00:07.1]} 42... Qxd6 {[%clk 0:00:16.7]} 43. Rf6
{[%clk 0:00:08.6]} 43... Qb6 {[%clk 0:00:10.3]} 44. Rxb6 {[%clk 0:00:08.8]} 1-0

[Event "*** Titled Tuesday Blitz"]
[Site "Chess.com"]
[Date "2019.04.02"]
[Round "8"]
[White "jefferyx"]
[Black "Micki-taryan"]
[Result "0-1"]
[WhiteElo "2885"]
[BlackElo "2969"]
[TimeControl "180+2"]
[EndTime "15:50:22 PDT"]
[Termination "Micki-taryan won by resignation"]

1. d4 {[%clk 0:03:01.9]} 1... Nf6 {[%clk 0:03:01.3]} 2. c4 {[%clk 0:03:03.6]}
2... e6 {[%clk 0:02:59.7]} 3. Nc3 {[%clk 0:03:05.2]} 3... Bb4 {[%clk 0:03:00.6]}
4. Nf3 {[%clk 0:03:06.9]} 4... O-O {[%clk 0:02:58.8]} 5. Bg5 {[%clk 0:03:08]}
5... h6 {[%clk 0:02:58.4]} 6. Bh4 {[%clk 0:03:08.9]} 6... d5 {[%clk 0:02:56.2]}
7. e3 {[%clk 0:02:32.2]} 7... Nbd7 {[%clk 0:02:50.9]} 8. Rc1 {[%clk 0:02:23.6]}
8... c6 {[%clk 0:02:47.2]} 9. Bd3 {[%clk 0:02:20.7]} 9... Be7 {[%clk 0:02:47.8]}
10. O-O {[%clk 0:02:21.3]} 10... dxc4 {[%clk 0:02:48.4]} 11. Bxc4 {[%clk
0:02:22.4]} 11... Nd5 {[%clk 0:02:49.8]} 12. Bg3 {[%clk 0:02:11.7]} 12... b6
{[%clk 0:02:48.5]} 13. Nxd5 {[%clk 0:02:09.5]} 13... exd5 {[%clk 0:02:44.7]} 14.
Bd3 {[%clk 0:02:10]} 14... Bb7 {[%clk 0:02:46]} 15. Bf5 {[%clk 0:02:01.9]} 15...
Nf6 {[%clk 0:02:40.9]} 16. Ne5 {[%clk 0:02:02.4]} 16... c5 {[%clk 0:02:42.1]}
17. Qa4 {[%clk 0:02:02]} 17... a6 {[%clk 0:02:17.8]} 18. Nc6 {[%clk 0:02:00.3]}
18... Bxc6 {[%clk 0:02:19.1]} 19. Qxc6 {[%clk 0:02:02.2]} 19... c4 {[%clk
0:02:13.4]} 20. Bc7 {[%clk 0:01:54.3]} 20... Qe8 {[%clk 0:02:14.1]} 21. Qxb6
{[%clk 0:01:55.9]} 21... g6 {[%clk 0:02:09.3]} 22. Bh3 {[%clk 0:01:56.8]} 22...
Qb5 {[%clk 0:02:06.8]} 23. b3 {[%clk 0:01:45.3]} 23... Ne4 {[%clk 0:01:46.9]}
24. bxc4 {[%clk 0:01:44.3]} 24... dxc4 {[%clk 0:01:48.5]} 25. Rfd1 {[%clk
0:01:32.7]} 25... Bd8 {[%clk 0:01:29.9]} 26. Bxd8 {[%clk 0:01:32.7]} 26... Rfxd8
{[%clk 0:01:31.8]} 27. Qc7 {[%clk 0:01:32.3]} 27... Nd6 {[%clk 0:01:20.8]} 28.
Qc5 {[%clk 0:01:32.9]} 28... Qa4 {[%clk 0:01:20.1]} 29. Re1 {[%clk 0:01:28.4]}
29... Rab8 {[%clk 0:01:09.4]} 30. e4 {[%clk 0:01:27.1]} 30... Qxa2 {[%clk
0:01:08.5]} 31. e5 {[%clk 0:01:27.5]} 31... Nb5 {[%clk 0:00:58.2]} 32. e6 {[%clk
0:01:28.6]} 32... Rb7 {[%clk 0:00:55.4]} 33. e7 {[%clk 0:01:29.1]} 33... Re8
{[%clk 0:00:52.8]} 34. d5 {[%clk 0:01:23.9]} 34... Qd2 {[%clk 0:00:48.3]} 35. g3
{[%clk 0:00:14.6]} 35... Nd4 {[%clk 0:00:22.7]} 36. Kg2 {[%clk 0:00:07.7]} 36...
Nb3 {[%clk 0:00:20.4]} 37. Qe3 {[%clk 0:00:04.6]} 37... Qxe3 {[%clk 0:00:20.7]}
38. Rxe3 {[%clk 0:00:06.5]} 38... Nxc1 {[%clk 0:00:20.9]} 39. d6 {[%clk
0:00:07.8]} 39... f5 {[%clk 0:00:07.6]} 40. Rc3 {[%clk 0:00:03.5]} 40... Nd3
{[%clk 0:00:08.1]} 41. Rxc4 {[%clk 0:00:05]} 41... Ne5 {[%clk 0:00:09.1]} 42.
Rc5 {[%clk 0:00:04.9]} 42... Nf7 {[%clk 0:00:10.3]} 43. Rc6 {[%clk 0:00:02]}
43... Rd7 {[%clk 0:00:11.4]} 44. Rxa6 {[%clk 0:00:03.5]} 44... Rxd6 {[%clk
0:00:12.7]} 45. Ra7 {[%clk 0:00:05.1]} 45... Re6 {[%clk 0:00:14.3]} 0-1

[Event "*** Titled Tuesday Blitz"]
[Site "Chess.com"]
[Date "2019.04.02"]
[Round "8"]
[White "Yurovskykh_Oleksandr"]
[Black "Jospem"]
[Result "0-1"]
[WhiteElo "2522"]
[BlackElo "2767"]
[TimeControl "180+2"]
[EndTime "15:50:24 PDT"]
[Termination "Jospem won by resignation"]

1. d4 {[%clk 0:03:01.9]} 1... Nf6 {[%clk 0:03:01.3]} 2. Nf3 {[%clk 0:02:57.9]}
2... e6 {[%clk 0:03:02.7]} 3. Bf4 {[%clk 0:02:58.5]} 3... c5 {[%clk 0:03:04.6]}
4. e3 {[%clk 0:02:58.4]} 4... Nc6 {[%clk 0:03:06.2]} 5. c3 {[%clk 0:02:59.7]}
5... Qb6 {[%clk 0:03:05.8]} 6. Qb3 {[%clk 0:03:00.1]} 6... d5 {[%clk 0:03:05.8]}
7. Nbd2 {[%clk 0:03:00.7]} 7... c4 {[%clk 0:03:06.4]} 8. Qc2 {[%clk 0:03:01.7]}
8... Nh5 {[%clk 0:03:02.7]} 9. Bg5 {[%clk 0:02:55]} 9... h6 {[%clk 0:03:03.8]}
10. Bh4 {[%clk 0:02:55.3]} 10... g5 {[%clk 0:03:04.1]} 11. Bg3 {[%clk
0:02:55.2]} 11... Bg7 {[%clk 0:03:00.5]} 12. Be2 {[%clk 0:02:54.3]} 12... Nxg3
{[%clk 0:03:00.4]} 13. hxg3 {[%clk 0:02:54.4]} 13... Bd7 {[%clk 0:02:52.4]} 14.
e4 {[%clk 0:02:52.1]} 14... f5 {[%clk 0:02:39.8]} 15. e5 {[%clk 0:02:25.2]}
15... O-O {[%clk 0:02:31.9]} 16. b3 {[%clk 0:01:58.7]} 16... cxb3 {[%clk
0:02:31.9]} 17. axb3 {[%clk 0:02:00.6]} 17... Rac8 {[%clk 0:02:32.4]} 18. Qb2
{[%clk 0:01:56.8]} 18... Be8 {[%clk 0:02:31.7]} 19. O-O {[%clk 0:01:55.6]} 19...
Bg6 {[%clk 0:02:28.8]} 20. Ne1 {[%clk 0:01:51.7]} 20... Qd8 {[%clk 0:02:20.3]}
21. f4 {[%clk 0:01:42.6]} 21... g4 {[%clk 0:02:11.3]} 22. Kf2 {[%clk 0:01:34]}
22... h5 {[%clk 0:02:05.8]} 23. Rh1 {[%clk 0:01:34.9]} 23... Rf7 {[%clk
0:01:59.6]} 24. Nd3 {[%clk 0:01:34.3]} 24... b6 {[%clk 0:02:00.6]} 25. b4 {[%clk
0:01:27.1]} 25... Rfc7 {[%clk 0:02:00.8]} 26. Nb3 {[%clk 0:01:25.6]} 26... Ne7
{[%clk 0:01:56.1]} 27. Rhc1 {[%clk 0:01:21.7]} 27... Be8 {[%clk 0:01:57.1]} 28.
Ne1 {[%clk 0:01:17]} 28... Ng6 {[%clk 0:01:54]} 29. Ba6 {[%clk 0:01:16.8]} 29...
h4 {[%clk 0:01:51.8]} 30. Nd3 {[%clk 0:00:48.4]} 30... hxg3+ {[%clk 0:01:51.4]}
31. Ke2 {[%clk 0:00:49.3]} 31... Bh6 {[%clk 0:01:41]} 32. Qd2 {[%clk 0:00:46.6]}
32... Rb8 {[%clk 0:01:36.6]} 33. Rh1 {[%clk 0:00:43.2]} 33... Rh7 {[%clk
0:01:31.6]} 34. Qe3 {[%clk 0:00:41.4]} 34... Qc7 {[%clk 0:01:26.6]} 35. Kd2
{[%clk 0:00:38.3]} 35... Kg7 {[%clk 0:01:09.7]} 36. Qxg3 {[%clk 0:00:37]} 36...
Bd7 {[%clk 0:01:11.1]} 37. Qe3 {[%clk 0:00:35.8]} 37... Rbh8 {[%clk 0:01:07.5]}
38. g3 {[%clk 0:00:36.5]} 38... Kg8 {[%clk 0:01:04]} 39. Rhf1 {[%clk 0:00:15.3]}
39... Bf8 {[%clk 0:01:04.9]} 40. Rf2 {[%clk 0:00:15.8]} 40... Be7 {[%clk
0:01:05.2]} 41. Rg2 {[%clk 0:00:13.1]} 41... Rh5 {[%clk 0:00:51.3]} 42. Nb2
{[%clk 0:00:13.2]} 42... Rh3 {[%clk 0:00:51]} 43. Qd3 {[%clk 0:00:14.1]} 43...
Nxf4 {[%clk 0:00:50.5]} 44. gxf4 {[%clk 0:00:14.3]} 44... Rxd3+ {[%clk
0:00:51.2]} 45. Nxd3 {[%clk 0:00:16.2]} 45... Rh3 {[%clk 0:00:51.3]} 46. Rag1
{[%clk 0:00:15.7]} 46... Kf8 {[%clk 0:00:52.2]} 47. Nbc1 {[%clk 0:00:16.8]}
47... Qc6 {[%clk 0:00:48.9]} 48. b5 {[%clk 0:00:09.4]} 48... Qc4 {[%clk
0:00:43.6]} 0-1

[Event "*** Titled Tuesday Blitz"]
[Site "Chess.com"]
[Date "2019.04.02"]
[Round "8"]
[White "DagurR"]
[Black "GMJimKnopf"]
[Result "1-0"]
[WhiteElo "2541"]
[BlackElo "2515"]
[TimeControl "180+2"]
[EndTime "15:50:29 PDT"]
[Termination "DagurR won by resignation"]

1. d4 {[%clk 0:03:01.6]} 1... Nf6 {[%clk 0:03:00.8]} 2. c4 {[%clk 0:02:59.2]}
2... a6 {[%clk 0:03:02]} 3. g3 {[%clk 0:02:47.8]} 3... c5 {[%clk 0:03:03.9]} 4.
Nf3 {[%clk 0:02:46.2]} 4... b5 {[%clk 0:03:00.8]} 5. cxb5 {[%clk 0:02:45.1]}
5... axb5 {[%clk 0:03:02.7]} 6. dxc5 {[%clk 0:02:45.3]} 6... Na6 {[%clk
0:02:59.7]} 7. c6 {[%clk 0:02:42.3]} 7... dxc6 {[%clk 0:02:54.3]} 8. Qxd8+
{[%clk 0:02:42.8]} 8... Kxd8 {[%clk 0:02:56.2]} 9. Bd2 {[%clk 0:01:59.6]} 9...
Be6 {[%clk 0:02:52.4]} 10. Bg2 {[%clk 0:01:57.1]} 10... Bd5 {[%clk 0:02:53.2]}
11. Nc3 {[%clk 0:01:57.5]} 11... e6 {[%clk 0:02:44.6]} 12. O-O {[%clk
0:01:54.5]} 12... Bb4 {[%clk 0:02:29.8]} 13. Ne5 {[%clk 0:01:51.3]} 13... Bxc3
{[%clk 0:01:52.6]} 14. Bxc3 {[%clk 0:01:43.1]} 14... b4 {[%clk 0:01:53.9]} 15.
Nxf7+ {[%clk 0:01:34.5]} 15... Ke7 {[%clk 0:01:54.6]} 16. Bxf6+ {[%clk
0:01:36.1]} 16... Kxf7 {[%clk 0:01:55.9]} 17. Be5 {[%clk 0:01:28.7]} 17... Nc5
{[%clk 0:01:52.3]} 18. Bd6 {[%clk 0:01:10.3]} 18... Na4 {[%clk 0:01:51.4]} 19.
Bxb4 {[%clk 0:00:56.2]} 19... Nxb2 {[%clk 0:01:49.7]} 20. a3 {[%clk 0:00:52.6]}
20... Rhb8 {[%clk 0:01:43.9]} 21. Rfc1 {[%clk 0:00:52.2]} 21... Bxg2 {[%clk
0:01:10.5]} 22. Kxg2 {[%clk 0:00:54.1]} 22... Ra6 {[%clk 0:01:12.2]} 23. Rc2
{[%clk 0:00:48.3]} 23... Na4 {[%clk 0:01:02.1]} 24. Rd1 {[%clk 0:00:39]} 24...
c5 {[%clk 0:00:50.3]} 25. Bxc5 {[%clk 0:00:24.6]} 25... Rc8 {[%clk 0:00:45.1]}
26. Rd7+ {[%clk 0:00:25.7]} 26... Kg6 {[%clk 0:00:46.1]} 27. Rxg7+ {[%clk
0:00:26.8]} 27... Kf5 {[%clk 0:00:30]} 28. e4+ {[%clk 0:00:21.5]} 28... Kxe4
{[%clk 0:00:28.9]} 29. Re2+ {[%clk 0:00:21.4]} 29... Kd5 {[%clk 0:00:21.4]} 30.
Rg5+ {[%clk 0:00:21.9]} 30... Kc4 {[%clk 0:00:20.5]} 31. Re4+ {[%clk 0:00:21.3]}
31... Kb3 {[%clk 0:00:20.1]} 32. Rb4+ {[%clk 0:00:22]} 32... Ka2 {[%clk
0:00:20.8]} 33. Bd4 {[%clk 0:00:20.2]} 33... Rc2 {[%clk 0:00:20.1]} 34. Re5
{[%clk 0:00:18.1]} 34... Kxa3 {[%clk 0:00:20.9]} 35. Rb8 {[%clk 0:00:19]} 35...
Rd6 {[%clk 0:00:19.6]} 36. Be3 {[%clk 0:00:19.9]} 36... Nc3 {[%clk 0:00:19.3]}
37. Ra5+ {[%clk 0:00:19.8]} 37... Na4 {[%clk 0:00:20.5]} 38. Rba8 {[%clk
0:00:21.3]} 38... Rc4 {[%clk 0:00:21.6]} 39. Rxa4+ {[%clk 0:00:22]} 39... Rxa4
{[%clk 0:00:22.2]} 40. Bc5+ {[%clk 0:00:23.6]} 40... Kb3 {[%clk 0:00:22.1]} 41.
Rxa4 {[%clk 0:00:25]} 41... Rd5 {[%clk 0:00:22.6]} 42. Ra5 {[%clk 0:00:25.6]}
42... Rd3 {[%clk 0:00:17.1]} 43. Be3 {[%clk 0:00:25.5]} 43... Kc4 {[%clk
0:00:19]} 44. Re5 {[%clk 0:00:26.4]} 44... Rd6 {[%clk 0:00:19.4]} 45. h4 {[%clk
0:00:27.6]} 45... Rc6 {[%clk 0:00:20.8]} 46. g4 {[%clk 0:00:28.3]} 46... Kd3
{[%clk 0:00:22.4]} 47. g5 {[%clk 0:00:28.8]} 47... Ke2 {[%clk 0:00:23.9]} 48. h5
{[%clk 0:00:29.5]} 48... Kd3 {[%clk 0:00:25.5]} 49. g6 {[%clk 0:00:30.4]} 49...
hxg6 {[%clk 0:00:26.5]} 50. hxg6 {[%clk 0:00:32]} 50... Rc4 {[%clk 0:00:28]} 51.
Rg5 {[%clk 0:00:32]} 51... Rc8 {[%clk 0:00:28.4]} 52. g7 {[%clk 0:00:33.4]}
52... Rg8 {[%clk 0:00:30.3]} 53. Kf3 {[%clk 0:00:34.6]} 53... Kc4 {[%clk
0:00:31.3]} 54. Ke4 {[%clk 0:00:35.9]} 1-0

[Event "*** Titled Tuesday Blitz"]
[Site "Chess.com"]
[Date "2019.04.02"]
[Round "8"]
[White "IIIlllII1llIl"]
[Black "NCchamp"]
[Result "1-0"]
[WhiteElo "2768"]
[BlackElo "2173"]
[TimeControl "180+2"]
[EndTime "15:50:36 PDT"]
[Termination "IIIlllII1llIl won by resignation"]

1. e4 {[%clk 0:03:01.9]} 1... c5 {[%clk 0:03:00.9]} 2. Nf3 {[%clk 0:03:02.8]}
2... e6 {[%clk 0:03:02]} 3. c3 {[%clk 0:03:02.8]} 3... Nf6 {[%clk 0:03:03]} 4.
e5 {[%clk 0:03:04]} 4... Nd5 {[%clk 0:03:04.3]} 5. d4 {[%clk 0:03:05.4]} 5...
cxd4 {[%clk 0:03:06.2]} 6. cxd4 {[%clk 0:03:07]} 6... d6 {[%clk 0:03:07]} 7. Bc4
{[%clk 0:03:08.1]} 7... Be7 {[%clk 0:03:08]} 8. Qe2 {[%clk 0:03:08.6]} 8... b6
{[%clk 0:02:54.3]} 9. O-O {[%clk 0:02:58.3]} 9... O-O {[%clk 0:02:48.5]} 10. Bd2
{[%clk 0:02:58.3]} 10... Bb7 {[%clk 0:02:46.1]} 11. Nc3 {[%clk 0:02:58.9]} 11...
Nxc3 {[%clk 0:02:46.6]} 12. Bxc3 {[%clk 0:03:00.8]} 12... Nd7 {[%clk 0:02:44.1]}
13. Rad1 {[%clk 0:02:31.8]} 13... Qc7 {[%clk 0:02:40.4]} 14. d5 {[%clk
0:02:24.8]} 14... exd5 {[%clk 0:02:22.7]} 15. Bxd5 {[%clk 0:02:24.1]} 15... Bxd5
{[%clk 0:02:10.4]} 16. Rxd5 {[%clk 0:02:26]} 16... dxe5 {[%clk 0:02:09.1]} 17.
Rfd1 {[%clk 0:02:14.7]} 17... Rfd8 {[%clk 0:01:53.1]} 18. Nxe5 {[%clk
0:02:12.6]} 18... Nf6 {[%clk 0:01:45.8]} 19. Rxd8+ {[%clk 0:01:58.5]} 19... Rxd8
{[%clk 0:01:45.5]} 20. Rxd8+ {[%clk 0:01:56.7]} 20... Bxd8 {[%clk 0:01:38.6]}
21. Ng4 {[%clk 0:01:54.9]} 21... Nd7 {[%clk 0:00:51.9]} 22. h4 {[%clk
0:01:22.6]} 22... Bxh4 {[%clk 0:00:43.4]} 23. g3 {[%clk 0:00:43.7]} 23... Bg5
{[%clk 0:00:44.2]} 24. Qe8+ {[%clk 0:00:36.2]} 24... Nf8 {[%clk 0:00:44.6]} 25.
Ne5 {[%clk 0:00:36.6]} 25... Qe7 {[%clk 0:00:40.2]} 26. Qxe7 {[%clk 0:00:36.9]}
26... Bxe7 {[%clk 0:00:40.7]} 27. Nc6 {[%clk 0:00:38.5]} 27... Bc5 {[%clk
0:00:36.8]} 28. b4 {[%clk 0:00:37.4]} 28... Bd6 {[%clk 0:00:33.8]} 29. Nxa7
{[%clk 0:00:36.9]} 29... Nd7 {[%clk 0:00:32.7]} 30. a4 {[%clk 0:00:31.8]} 30...
Kf8 {[%clk 0:00:28]} 31. Nc6 {[%clk 0:00:20.4]} 31... f6 {[%clk 0:00:26.4]} 32.
Bd4 {[%clk 0:00:20.8]} 32... Ke8 {[%clk 0:00:20.6]} 33. a5 {[%clk 0:00:19]}
33... bxa5 {[%clk 0:00:12.8]} 34. bxa5 {[%clk 0:00:20.9]} 34... Bc5 {[%clk
0:00:14.2]} 35. a6 {[%clk 0:00:16.3]} 35... Bxd4 {[%clk 0:00:14.4]} 36. Nxd4
{[%clk 0:00:16.9]} 36... Kd8 {[%clk 0:00:13.1]} 37. Ne6+ {[%clk 0:00:15.4]}
37... Kc8 {[%clk 0:00:12.9]} 38. Nxg7 {[%clk 0:00:15.6]} 38... Kb8 {[%clk
0:00:14.2]} 39. Kg2 {[%clk 0:00:16.6]} 39... Ka7 {[%clk 0:00:15.2]} 40. Kf3
{[%clk 0:00:17.7]} 40... Kxa6 {[%clk 0:00:16.7]} 41. Ke4 {[%clk 0:00:19]} 41...
Kb6 {[%clk 0:00:17.9]} 42. Kd5 {[%clk 0:00:20.2]} 42... Kc7 {[%clk 0:00:19]} 43.
Ke6 {[%clk 0:00:21.4]} 43... Kd8 {[%clk 0:00:19.6]} 44. Nh5 {[%clk 0:00:19.6]}
44... Ke8 {[%clk 0:00:20.7]} 45. Nxf6+ {[%clk 0:00:20.5]} 45... Nxf6 {[%clk
0:00:22.3]} 46. Kxf6 {[%clk 0:00:22.4]} 46... Kf8 {[%clk 0:00:24]} 47. g4 {[%clk
0:00:22.6]} 47... Kg8 {[%clk 0:00:24.9]} 48. g5 {[%clk 0:00:23.2]} 48... Kf8
{[%clk 0:00:26.8]} 49. Kf5 {[%clk 0:00:19.8]} 49... Kf7 {[%clk 0:00:27.7]} 50.
Kg4 {[%clk 0:00:18.7]} 50... Kg6 {[%clk 0:00:25.1]} 51. f3 {[%clk 0:00:19.4]}
51... h6 {[%clk 0:00:26.6]} 52. gxh6 {[%clk 0:00:20.3]} 52... Kxh6 {[%clk
0:00:26.3]} 53. Kf5 {[%clk 0:00:21.4]} 53... Kg7 {[%clk 0:00:28.2]} 54. Ke6
{[%clk 0:00:22.5]} 54... Kf8 {[%clk 0:00:29.7]} 55. Kf6 {[%clk 0:00:20.6]} 55...
Kg8 {[%clk 0:00:30.8]} 56. Ke7 {[%clk 0:00:21]} 56... Kg7 {[%clk 0:00:31.9]} 57.
f4 {[%clk 0:00:22.1]} 57... Kg6 {[%clk 0:00:33.3]} 58. Ke6 {[%clk 0:00:22.4]}
58... Kg7 {[%clk 0:00:34.7]} 59. f5 {[%clk 0:00:22.6]} 59... Kg8 {[%clk
0:00:34.7]} 60. Ke7 {[%clk 0:00:23.2]} 1-0